[Event "Live Chess"]
[Site "Chess.com"]
[Date "2024.06.02"]
[Round "-"]
[White "DavrosLight"]
[Black "Inglaterra"]
[Result "0-1"]
[WhiteElo "802"]
[BlackElo "2041"]
[TimeControl "300"]
[EndTime "7:46:08 PDT"]
[Termination "Inglaterra won by resignation"]

1. e4 {[%clk 0:04:59.2]} 1... e5 {[%clk 0:04:58.6]} 2. Nc3 {[%clk 0:04:55.1]}
2... Nf6 {[%clk 0:04:56.9]} 3. Nf3 {[%clk 0:04:51.1]} 3... Bb4 {[%clk
0:04:54.5]} 4. Nxe5 {[%clk 0:04:40.6]} 4... O-O {[%clk 0:04:52.5]} 5. d4 {[%clk
0:04:34.1]} 5... Nxe4 {[%clk 0:04:49.8]} 6. Qf3 {[%clk 0:04:16.9]} 6... d5
{[%clk 0:04:41.6]} 7. Bd3 {[%clk 0:04:09]} 7... Nxc3 {[%clk 0:04:36.6]} 8. Bxh7+
{[%clk 0:04:05.8]} 8... Kxh7 {[%clk 0:04:32]} 9. Qh5+ {[%clk 0:03:55.2]} 9...
Kg8 {[%clk 0:04:30.9]} 10. bxc3 {[%clk 0:03:32.3]} 10... Bxc3+ {[%clk
0:04:28.9]} 11. Kf1 {[%clk 0:03:28.2]} 11... Bxa1 {[%clk 0:04:27]} 12. Bh6
{[%clk 0:03:18.4]} 12... Bxd4 {[%clk 0:04:05.5]} 13. Bg5 {[%clk 0:02:48.7]}
13... Qd6 {[%clk 0:03:51.7]} 14. Nxf7 {[%clk 0:02:14.4]} 14... Rxf7 {[%clk
0:03:51.6]} 0-1

[Event "Live Chess"]
[Site "Chess.com"]
[Date "2024.06.02"]
[Round "-"]
[White "Duke_of_Bebington"]
[Black "NAZRIZ1977"]
[Result "0-1"]
[WhiteElo "1587"]
[BlackElo "2080"]
[TimeControl "300"]
[EndTime "7:46:10 PDT"]
[Termination "NAZRIZ1977 won by resignation"]

1. e4 {[%clk 0:04:58.3]} 1... c6 {[%clk 0:04:57.3]} 2. d4 {[%clk 0:04:56.6]}
2... d5 {[%clk 0:04:56.7]} 3. e5 {[%clk 0:04:56.2]} 3... Bf5 {[%clk 0:04:55.3]}
4. g4 {[%clk 0:04:55.3]} 4... Be4 {[%clk 0:04:51.6]} 5. f4 {[%clk 0:04:53.6]}
5... Bxh1 {[%clk 0:04:49]} 6. Bd3 {[%clk 0:04:10.8]} 6... Be4 {[%clk 0:04:03.9]}
7. e6 {[%clk 0:04:08.1]} 7... fxe6 {[%clk 0:03:57.5]} 8. Qe2 {[%clk 0:04:02.9]}
8... Bxd3 {[%clk 0:03:55]} 9. Qxd3 {[%clk 0:04:02.8]} 9... Nf6 {[%clk
0:03:53.5]} 10. g5 {[%clk 0:03:56]} 10... Ne4 {[%clk 0:03:52.2]} 11. Nd2 {[%clk
0:03:53.8]} 11... g6 {[%clk 0:03:48.6]} 12. Nxe4 {[%clk 0:03:52.3]} 12... dxe4
{[%clk 0:03:47.9]} 13. Qxe4 {[%clk 0:03:52.2]} 13... Qd5 {[%clk 0:03:47.1]} 0-1

[Event "Live Chess"]
[Site "Chess.com"]
[Date "2024.06.02"]
[Round "-"]
[White "Ginger_GM"]
[Black "Hoogleboogle"]
[Result "1-0"]
[WhiteElo "2665"]
[BlackElo "1258"]
[TimeControl "300"]
[EndTime "7:46:19 PDT"]
[Termination "Ginger_GM won on time"]

1. e4 {[%clk 0:04:58.4]} 1... c6 {[%clk 0:04:55.8]} 2. Bc4 {[%clk 0:04:56.9]}
2... d5 {[%clk 0:04:53.5]} 3. Bb3 {[%clk 0:04:56.3]} 3... e5 {[%clk 0:04:46.4]}
4. Nc3 {[%clk 0:04:51.9]} 4... d4 {[%clk 0:04:43.8]} 5. Nce2 {[%clk 0:04:50.9]}
5... Nf6 {[%clk 0:04:40.6]} 6. d3 {[%clk 0:04:49.7]} 6... Be6 {[%clk 0:04:33.2]}
7. Bxe6 {[%clk 0:04:47.8]} 7... fxe6 {[%clk 0:04:31.3]} 8. Nf3 {[%clk
0:04:46.8]} 8... Bd6 {[%clk 0:04:29.2]} 9. O-O {[%clk 0:04:44.5]} 9... O-O
{[%clk 0:04:27.7]} 10. c3 {[%clk 0:04:43.3]} 10... c5 {[%clk 0:04:25]} 11. a4
{[%clk 0:04:41.2]} 11... a5 {[%clk 0:04:22.8]} 12. Qb3 {[%clk 0:04:37]} 12...
Qd7 {[%clk 0:04:19.1]} 13. Nd2 {[%clk 0:04:31.7]} 13... Nc6 {[%clk 0:03:57.2]}
14. Nc4 {[%clk 0:04:30]} 14... Rab8 {[%clk 0:03:53.2]} 15. Bg5 {[%clk
0:04:24.7]} 15... h6 {[%clk 0:03:47.5]} 16. Bxf6 {[%clk 0:04:21.8]} 16... Rxf6
{[%clk 0:03:45]} 17. Qb5 {[%clk 0:04:17]} 17... Rf7 {[%clk 0:03:32.6]} 18. Nxa5
{[%clk 0:04:10.4]} 18... Nxa5 {[%clk 0:03:27.2]} 19. Qxa5 {[%clk 0:04:10.3]}
19... Rff8 {[%clk 0:03:14.3]} 20. Qb5 {[%clk 0:04:08.8]} 20... Qxb5 {[%clk
0:03:08.7]} 21. axb5 {[%clk 0:04:07.6]} 21... b6 {[%clk 0:03:07.8]} 22. Ra6
{[%clk 0:04:05.6]} 22... Rb7 {[%clk 0:02:58.3]} 23. c4 {[%clk 0:04:00.9]} 23...
Bc7 {[%clk 0:02:52.8]} 24. Rfa1 {[%clk 0:03:59.1]} 24... Rfb8 {[%clk 0:02:49.2]}
25. Nc1 {[%clk 0:03:53.9]} 25... Bd8 {[%clk 0:02:38.2]} 26. Nb3 {[%clk
0:03:53.8]} 26... Kf7 {[%clk 0:02:33.4]} 27. Nd2 {[%clk 0:03:52.5]} 27... Bg5
{[%clk 0:02:31.3]} 28. Nb1 {[%clk 0:03:51.4]} 28... Bc1 {[%clk 0:02:26.3]} 29.
R1a2 {[%clk 0:03:50.1]} 29... g5 {[%clk 0:02:14.3]} 30. Kf1 {[%clk 0:03:49]}
30... h5 {[%clk 0:02:11.9]} 31. Na3 {[%clk 0:03:47.3]} 31... h4 {[%clk 0:02:06]}
32. h3 {[%clk 0:03:44.9]} 32... Bd2 {[%clk 0:01:50]} 33. Ke2 {[%clk 0:03:43.2]}
33... Ba5 {[%clk 0:01:47.9]} 34. Nc2 {[%clk 0:03:40.7]} 34... Kf6 {[%clk
0:01:38.8]} 35. Ra4 {[%clk 0:03:36.6]} 35... Kg6 {[%clk 0:01:34.5]} 36. b4
{[%clk 0:03:35.4]} 36... cxb4 {[%clk 0:01:25.7]} 37. Nxb4 {[%clk 0:03:35.3]}
37... Bxb4 {[%clk 0:01:24.2]} 38. Rxb4 {[%clk 0:03:35.2]} 38... Kh5 {[%clk
0:01:19.1]} 39. Rba4 {[%clk 0:03:28.2]} 39... g4 {[%clk 0:01:17]} 40. hxg4+
{[%clk 0:03:27]} 40... Kxg4 {[%clk 0:01:16.4]} 41. Ra8 {[%clk 0:03:25.8]} 41...
Kf4 {[%clk 0:00:55]} 42. Rxb8 {[%clk 0:03:24.3]} 42... Rxb8 {[%clk 0:00:52.9]}
43. Ra7 {[%clk 0:03:24.2]} 43... Kg5 {[%clk 0:00:47.9]} 44. Rg7+ {[%clk
0:03:19.7]} 44... Kf6 {[%clk 0:00:46.5]} 45. Rh7 {[%clk 0:03:17.5]} 45... Kg5
{[%clk 0:00:44.3]} 46. Re7 {[%clk 0:03:12.7]} 46... Kf6 {[%clk 0:00:42.5]} 47.
Ra7 {[%clk 0:03:10.9]} 47... Kg5 {[%clk 0:00:38.7]} 48. Kf1 {[%clk 0:03:09.1]}
48... Kf4 {[%clk 0:00:36.2]} 49. Kg1 {[%clk 0:03:08.3]} 49... Kg4 {[%clk
0:00:34.6]} 50. Kh2 {[%clk 0:03:07.5]} 50... Kh5 {[%clk 0:00:32.7]} 51. Kh3
{[%clk 0:03:06.5]} 51... Rf8 {[%clk 0:00:20.3]} 52. f3 {[%clk 0:03:02.3]} 52...
Rb8 {[%clk 0:00:15.2]} 53. Rh7+ {[%clk 0:03:00.8]} 53... Kg5 {[%clk 0:00:12.7]}
54. Rxh4 {[%clk 0:03:00]} 54... Ra8 {[%clk 0:00:04.6]} 55. Rg4+ {[%clk 0:02:59]}
55... Kf6 {[%clk 0:00:02.6]} 56. f4 {[%clk 0:02:57.7]} 1-0

[Event "Live Chess"]
[Site "Chess.com"]
[Date "2024.06.02"]
[Round "-"]
[White "nitrofish07"]
[Black "gobbles19"]
[Result "0-1"]
[WhiteElo "2080"]
[BlackElo "2214"]
[TimeControl "300"]
[EndTime "7:46:20 PDT"]
[Termination "gobbles19 won by resignation"]

1. d4 {[%clk 0:04:57]} 1... Nf6 {[%clk 0:04:58.9]} 2. c4 {[%clk 0:04:56.4]} 2...
e6 {[%clk 0:04:58]} 3. g3 {[%clk 0:04:55.8]} 3... c5 {[%clk 0:04:57.5]} 4. d5
{[%clk 0:04:54]} 4... exd5 {[%clk 0:04:56.4]} 5. cxd5 {[%clk 0:04:53.9]} 5... d6
{[%clk 0:04:56.1]} 6. Bg2 {[%clk 0:04:52.7]} 6... g6 {[%clk 0:04:55.8]} 7. Nc3
{[%clk 0:04:51.9]} 7... Bg7 {[%clk 0:04:55.3]} 8. Nf3 {[%clk 0:04:51.4]} 8...
O-O {[%clk 0:04:55]} 9. O-O {[%clk 0:04:50.9]} 9... Re8 {[%clk 0:04:53.9]} 10.
a4 {[%clk 0:04:49.7]} 10... Na6 {[%clk 0:04:51.4]} 11. Nd2 {[%clk 0:04:48.5]}
11... Nc7 {[%clk 0:04:50]} 12. e4 {[%clk 0:04:46]} 12... b6 {[%clk 0:04:45.8]}
13. Qc2 {[%clk 0:04:44.4]} 13... Ba6 {[%clk 0:04:41.5]} 14. Re1 {[%clk
0:04:40.6]} 14... Nfxd5 {[%clk 0:04:33.4]} 15. Rd1 {[%clk 0:04:21.2]} 15... Nb4
{[%clk 0:04:31]} 16. Qb3 {[%clk 0:04:18.8]} 16... Ne6 {[%clk 0:04:29.1]} 17. Nc4
{[%clk 0:04:11.1]} 17... Nd4 {[%clk 0:04:23.3]} 18. Rxd4 {[%clk 0:03:56.5]}
18... cxd4 {[%clk 0:04:23.2]} 19. Qxb4 {[%clk 0:03:55.4]} 19... dxc3 {[%clk
0:04:21.4]} 20. bxc3 {[%clk 0:03:55.1]} 20... Bxc4 {[%clk 0:04:17.1]} 21. Qxc4
{[%clk 0:03:54.1]} 21... Rc8 {[%clk 0:04:16.8]} 22. Qd5 {[%clk 0:03:47.9]} 22...
Bxc3 {[%clk 0:04:09.9]} 23. Rb1 {[%clk 0:03:45.7]} 23... Qf6 {[%clk 0:04:03.7]}
24. Ba3 {[%clk 0:03:42.2]} 24... Bd4 {[%clk 0:03:59.6]} 25. Rf1 {[%clk
0:03:24.6]} 25... Rc2 {[%clk 0:03:53.3]} 26. Qxd6 {[%clk 0:03:17.5]} 26... Rxf2
{[%clk 0:03:47.7]} 0-1

[Event "Live Chess"]
[Site "Chess.com"]
[Date "2024.06.02"]
[Round "-"]
[White "dl_chess"]
[Black "missedJariChance"]
[Result "1-0"]
[WhiteElo "1210"]
[BlackElo "1366"]
[TimeControl "300"]
[EndTime "7:46:39 PDT"]
[Termination "dl_chess won by resignation"]

1. e4 {[%clk 0:04:55.5]} 1... c5 {[%clk 0:04:57.4]} 2. Nf3 {[%clk 0:04:53.2]}
2... e6 {[%clk 0:04:55.4]} 3. d4 {[%clk 0:04:51.8]} 3... cxd4 {[%clk 0:04:54.3]}
4. Nxd4 {[%clk 0:04:50.7]} 4... Nc6 {[%clk 0:04:52]} 5. Nc3 {[%clk 0:04:49.2]}
5... a6 {[%clk 0:04:48.9]} 6. Be3 {[%clk 0:04:42.5]} 6... Qc7 {[%clk 0:04:47.7]}
7. Bd3 {[%clk 0:04:29.8]} 7... Nf6 {[%clk 0:04:44.9]} 8. f3 {[%clk 0:04:28.8]}
8... Be7 {[%clk 0:04:42.2]} 9. Qd2 {[%clk 0:04:24.5]} 9... Bb4 {[%clk
0:04:37.3]} 10. a3 {[%clk 0:04:18.4]} 10... Ba5 {[%clk 0:04:35.8]} 11. b4 {[%clk
0:04:14.9]} 11... Bb6 {[%clk 0:04:33.3]} 12. Nxc6 {[%clk 0:03:54.4]} 12... Bxe3
{[%clk 0:04:11.9]} 13. Qxe3 {[%clk 0:03:48.3]} 13... Qxc6 {[%clk 0:04:10.2]} 14.
Ne2 {[%clk 0:03:38]} 14... O-O {[%clk 0:04:03.9]} 15. O-O {[%clk 0:03:36.2]}
15... d5 {[%clk 0:03:57.9]} 16. Nd4 {[%clk 0:03:32.5]} 16... Qc7 {[%clk
0:03:44]} 17. e5 {[%clk 0:03:27.7]} 17... Nd7 {[%clk 0:03:41.8]} 18. f4 {[%clk
0:03:24.2]} 18... Nb6 {[%clk 0:03:30.7]} 19. Qh3 {[%clk 0:03:20.8]} 19... h6
{[%clk 0:03:27.2]} 20. Rf3 {[%clk 0:02:59.3]} 20... Qc3 {[%clk 0:03:22.5]} 21.
Bh7+ {[%clk 0:02:54.3]} 21... Kxh7 {[%clk 0:03:20.3]} 22. Rxc3 {[%clk 0:02:53]}
1-0

[Event "Live Chess"]
[Site "Chess.com"]
[Date "2024.06.02"]
[Round "-"]
[White "stevochess11"]
[Black "blunderabit"]
[Result "1-0"]
[WhiteElo "1692"]
[BlackElo "1766"]
[TimeControl "300"]
[EndTime "7:46:45 PDT"]
[Termination "stevochess11 won on time"]

1. d4 {[%clk 0:04:58.3]} 1... d5 {[%clk 0:04:57.1]} 2. Nf3 {[%clk 0:04:56.8]}
2... Nf6 {[%clk 0:04:54.8]} 3. e3 {[%clk 0:04:53.5]} 3... e6 {[%clk 0:04:51.9]}
4. Bd3 {[%clk 0:04:52.5]} 4... Bd6 {[%clk 0:04:49.1]} 5. O-O {[%clk 0:04:51.4]}
5... O-O {[%clk 0:04:46.3]} 6. Nbd2 {[%clk 0:04:50.8]} 6... c5 {[%clk
0:04:44.3]} 7. b3 {[%clk 0:04:48.5]} 7... Nc6 {[%clk 0:04:42.5]} 8. a3 {[%clk
0:04:46]} 8... cxd4 {[%clk 0:04:38.9]} 9. exd4 {[%clk 0:04:44.7]} 9... b6 {[%clk
0:04:36.8]} 10. Bb2 {[%clk 0:04:42.5]} 10... Bb7 {[%clk 0:04:35]} 11. Qe2 {[%clk
0:04:41.4]} 11... Ne7 {[%clk 0:04:30.3]} 12. Ne5 {[%clk 0:04:33.5]} 12... g6
{[%clk 0:04:15.9]} 13. f4 {[%clk 0:04:19.3]} 13... Nf5 {[%clk 0:03:42.7]} 14. g4
{[%clk 0:04:06.4]} 14... Ng7 {[%clk 0:03:39.9]} 15. f5 {[%clk 0:04:00.6]} 15...
exf5 {[%clk 0:03:35]} 16. gxf5 {[%clk 0:03:58.4]} 16... Re8 {[%clk 0:03:22.9]}
17. fxg6 {[%clk 0:03:49.3]} 17... fxg6 {[%clk 0:03:21.3]} 18. Ndf3 {[%clk
0:03:44.1]} 18... Ne4 {[%clk 0:03:15.4]} 19. c4 {[%clk 0:03:30.2]} 19... Ng5
{[%clk 0:02:38.3]} 20. Rae1 {[%clk 0:03:11.3]} 20... Nh3+ {[%clk 0:02:18.3]} 21.
Kh1 {[%clk 0:02:57.4]} 21... Nf4 {[%clk 0:02:15.6]} 22. Qe3 {[%clk 0:02:51]}
22... Ngh5 {[%clk 0:01:45.6]} 23. Rg1 {[%clk 0:02:25.9]} 23... Kg7 {[%clk
0:01:38.9]} 24. Rg4 {[%clk 0:02:03.1]} 24... dxc4 {[%clk 0:01:27.1]} 25. bxc4
{[%clk 0:01:58.9]} 25... Nxd3 {[%clk 0:01:19.3]} 26. Qxd3 {[%clk 0:01:53.1]}
26... Bxe5 {[%clk 0:01:10.3]} 27. Kg1 {[%clk 0:01:29.2]} 27... Bxf3 {[%clk
0:00:48.7]} 28. Qxf3 {[%clk 0:01:23.3]} 28... Bf6 {[%clk 0:00:47]} 29. Rf1
{[%clk 0:01:17.2]} 29... Bxd4+ {[%clk 0:00:39.8]} 30. Bxd4+ {[%clk 0:01:14.6]}
30... Kh6 {[%clk 0:00:07.3]} 31. Be3+ {[%clk 0:01:09.9]} 1-0

[Event "Live Chess"]
[Site "Chess.com"]
[Date "2024.06.02"]
[Round "-"]
[White "Queensandpawns"]
[Black "agamilewska"]
[Result "1-0"]
[WhiteElo "2273"]
[BlackElo "1776"]
[TimeControl "300"]
[EndTime "7:46:55 PDT"]
[Termination "Queensandpawns won by resignation"]

1. e4 {[%clk 0:04:57.5]} 1... e5 {[%clk 0:04:57.9]} 2. Nf3 {[%clk 0:04:56.3]}
2... Nc6 {[%clk 0:04:57.2]} 3. d4 {[%clk 0:04:54.6]} 3... exd4 {[%clk
0:04:56.1]} 4. c3 {[%clk 0:04:54.5]} 4... d5 {[%clk 0:04:53.5]} 5. e5 {[%clk
0:04:52.9]} 5... dxc3 {[%clk 0:04:51.1]} 6. Nxc3 {[%clk 0:04:52.8]} 6... Bb4
{[%clk 0:04:48.6]} 7. a3 {[%clk 0:04:46.8]} 7... Bxc3+ {[%clk 0:04:47.6]} 8.
bxc3 {[%clk 0:04:46.7]} 8... Nge7 {[%clk 0:04:46.4]} 9. Bd3 {[%clk 0:04:44.7]}
9... O-O {[%clk 0:04:45.2]} 10. Qc2 {[%clk 0:04:35.8]} 10... h6 {[%clk
0:04:43.3]} 11. O-O {[%clk 0:04:34.5]} 11... Bg4 {[%clk 0:04:42.2]} 12. Kh1
{[%clk 0:04:30.3]} 12... Bxf3 {[%clk 0:04:38.6]} 13. gxf3 {[%clk 0:04:30.2]}
13... d4 {[%clk 0:04:37.9]} 14. Rg1 {[%clk 0:04:30]} 14... Nxe5 {[%clk 0:04:24]}
15. Bxh6 {[%clk 0:04:27.8]} 15... N7g6 {[%clk 0:04:21.9]} 16. Bg5 {[%clk
0:04:11.8]} 16... Qd7 {[%clk 0:04:09.8]} 17. cxd4 {[%clk 0:04:05.7]} 17... Nxf3
{[%clk 0:04:04.6]} 18. Rg3 {[%clk 0:03:55.4]} 18... Nxg5 {[%clk 0:03:59.4]} 19.
Rxg5 {[%clk 0:03:55.3]} 19... Qxd4 {[%clk 0:03:33]} 20. Rag1 {[%clk 0:03:45.2]}
20... Rad8 {[%clk 0:03:23.6]} 21. Bxg6 {[%clk 0:03:40.4]} 21... fxg6 {[%clk
0:03:19.8]} 22. Qxg6 {[%clk 0:03:40.2]} 22... Rf7 {[%clk 0:02:35.9]} 23. Rh5
{[%clk 0:03:29.6]} 23... Qxf2 {[%clk 0:02:25.4]} 24. Qh7+ {[%clk 0:03:24.7]}
24... Kf8 {[%clk 0:02:24.4]} 25. Qh8+ {[%clk 0:03:24.6]} 25... Ke7 {[%clk
0:02:20.3]} 26. Re5+ {[%clk 0:03:24.5]} 26... Kd6 {[%clk 0:02:09]} 27. Qxd8+
{[%clk 0:03:16.4]} 27... Kxe5 {[%clk 0:02:07.9]} 28. Rg5+ {[%clk 0:03:05.3]}
28... Ke4 {[%clk 0:01:49.9]} 29. Qd5+ {[%clk 0:02:58.5]} 29... Ke3 {[%clk
0:01:44.8]} 30. Re5+ {[%clk 0:02:55.4]} 30... Kf4 {[%clk 0:01:43.8]} 31. Qxf7+
{[%clk 0:02:54.1]} 31... Kxe5 {[%clk 0:01:41.8]} 32. Qxf2 {[%clk 0:02:53.7]} 1-0

[Event "Live Chess"]
[Site "Chess.com"]
[Date "2024.06.02"]
[Round "-"]
[White "best137"]
[Black "DJ_Lambton"]
[Result "0-1"]
[WhiteElo "1517"]
[BlackElo "1805"]
[TimeControl "300"]
[EndTime "7:47:05 PDT"]
[Termination "DJ_Lambton won by checkmate"]

1. c4 {[%clk 0:04:58.3]} 1... c6 {[%clk 0:04:59.9]} 2. Nc3 {[%clk 0:04:57.1]}
2... d5 {[%clk 0:04:59.8]} 3. d4 {[%clk 0:04:55.4]} 3... Nf6 {[%clk 0:04:58.9]}
4. Nf3 {[%clk 0:04:54.6]} 4... dxc4 {[%clk 0:04:57.7]} 5. e4 {[%clk 0:04:52.7]}
5... b5 {[%clk 0:04:56.7]} 6. a4 {[%clk 0:04:48.1]} 6... b4 {[%clk 0:04:55.6]}
7. Na2 {[%clk 0:04:30.5]} 7... a5 {[%clk 0:04:53.8]} 8. e5 {[%clk 0:04:28]} 8...
Nd5 {[%clk 0:04:52.7]} 9. Bxc4 {[%clk 0:04:19.9]} 9... e6 {[%clk 0:04:45.4]} 10.
Bg5 {[%clk 0:04:12.5]} 10... Be7 {[%clk 0:04:43.8]} 11. Bxe7 {[%clk 0:04:07.7]}
11... Qxe7 {[%clk 0:04:43]} 12. O-O {[%clk 0:03:58.4]} 12... Ba6 {[%clk
0:04:41.4]} 13. Rc1 {[%clk 0:03:34.7]} 13... Nd7 {[%clk 0:04:33.4]} 14. Bxa6
{[%clk 0:03:10.5]} 14... Rxa6 {[%clk 0:04:30.2]} 15. Qd3 {[%clk 0:03:10]} 15...
Rb6 {[%clk 0:04:25.5]} 16. Rc2 {[%clk 0:02:55.9]} 16... O-O {[%clk 0:04:23.5]}
17. Nc1 {[%clk 0:02:52.5]} 17... Rc8 {[%clk 0:04:22]} 18. h4 {[%clk 0:02:47.4]}
18... c5 {[%clk 0:04:18]} 19. Ng5 {[%clk 0:02:44.5]} 19... g6 {[%clk 0:04:10.6]}
20. Nb3 {[%clk 0:02:14.6]} 20... Rbc6 {[%clk 0:03:52.1]} 21. dxc5 {[%clk
0:02:06]} 21... Nxc5 {[%clk 0:03:49.1]} 22. Nxc5 {[%clk 0:02:03.2]} 22... Rxc5
{[%clk 0:03:48.1]} 23. Rxc5 {[%clk 0:02:00.9]} 23... Qxc5 {[%clk 0:03:46.9]} 24.
h5 {[%clk 0:01:52.4]} 24... Nf4 {[%clk 0:03:45.4]} 25. Qd7 {[%clk 0:01:39.5]}
25... Qc7 {[%clk 0:03:29.3]} 26. Qxc7 {[%clk 0:01:24.5]} 26... Rxc7 {[%clk
0:03:29.2]} 27. h6 {[%clk 0:01:19.8]} 27... Rc5 {[%clk 0:03:20.9]} 28. Rd1
{[%clk 0:01:14.7]} 28... Kf8 {[%clk 0:03:14.9]} 29. Rd7 {[%clk 0:01:10.6]} 29...
Rxe5 {[%clk 0:03:12.5]} 30. Rxf7+ {[%clk 0:01:08.8]} 30... Ke8 {[%clk
0:03:11.6]} 31. Rxf4 {[%clk 0:01:07.4]} 31... Rxg5 {[%clk 0:03:10.6]} 32. g3
{[%clk 0:00:44.2]} 32... Rh5 {[%clk 0:03:07.5]} 33. Rh4 {[%clk 0:00:42.6]} 33...
Rxh4 {[%clk 0:03:05.4]} 34. gxh4 {[%clk 0:00:42.5]} 34... Kf7 {[%clk 0:03:05]}
35. Kg2 {[%clk 0:00:41.8]} 35... Kf6 {[%clk 0:03:04.6]} 36. Kf3 {[%clk
0:00:40.8]} 36... Kf5 {[%clk 0:03:04.1]} 37. b3 {[%clk 0:00:38]} 37... e5 {[%clk
0:03:01.9]} 38. Kg3 {[%clk 0:00:35]} 38... Ke4 {[%clk 0:03:00.6]} 39. f3+ {[%clk
0:00:28.1]} 39... Kf5 {[%clk 0:02:57.6]} 40. Kf2 {[%clk 0:00:19.3]} 40... Kf4
{[%clk 0:02:56.8]} 41. Ke2 {[%clk 0:00:17.8]} 41... Kg3 {[%clk 0:02:54.8]} 42.
Ke3 {[%clk 0:00:16.8]} 42... Kxh4 {[%clk 0:02:53.9]} 43. Ke4 {[%clk 0:00:16.4]}
43... Kg5 {[%clk 0:02:53.4]} 44. Kxe5 {[%clk 0:00:15.6]} 44... Kxh6 {[%clk
0:02:51.4]} 45. f4 {[%clk 0:00:14.7]} 45... Kg7 {[%clk 0:02:50.1]} 46. f5 {[%clk
0:00:13.8]} 46... g5 {[%clk 0:02:48.7]} 47. f6+ {[%clk 0:00:12.2]} 47... Kf7
{[%clk 0:02:48]} 48. Kf5 {[%clk 0:00:11.9]} 48... h6 {[%clk 0:02:47]} 49. Ke5
{[%clk 0:00:10.1]} 49... g4 {[%clk 0:02:44.9]} 50. Kf4 {[%clk 0:00:09.1]} 50...
h5 {[%clk 0:02:43.7]} 51. Kg5 {[%clk 0:00:07.4]} 51... g3 {[%clk 0:02:42.9]} 52.
Kxh5 {[%clk 0:00:06.8]} 52... g2 {[%clk 0:02:42.7]} 53. Kh6 {[%clk 0:00:06.7]}
53... g1=Q {[%clk 0:02:42.1]} 54. Kh7 {[%clk 0:00:06.3]} 54... Qh2# {[%clk
0:02:40.5]} 0-1

[Event "Live Chess"]
[Site "Chess.com"]
[Date "2024.06.02"]
[Round "-"]
[White "Zhevzh1k7"]
[Black "yarek"]
[Result "0-1"]
[WhiteElo "1112"]
[BlackElo "1754"]
[TimeControl "300"]
[EndTime "7:47:20 PDT"]
[Termination "yarek won by checkmate"]

1. e4 {[%clk 0:04:56]} 1... g6 {[%clk 0:04:59.4]} 2. Nf3 {[%clk 0:04:53.4]} 2...
Bg7 {[%clk 0:04:58.9]} 3. Bc4 {[%clk 0:04:51.5]} 3... c6 {[%clk 0:04:58.4]} 4.
Nc3 {[%clk 0:04:49.3]} 4... e6 {[%clk 0:04:52.8]} 5. d4 {[%clk 0:04:46.8]} 5...
d5 {[%clk 0:04:52.1]} 6. Bb3 {[%clk 0:04:42.6]} 6... dxe4 {[%clk 0:04:49]} 7.
Nxe4 {[%clk 0:04:42.5]} 7... Nf6 {[%clk 0:04:47.8]} 8. Bg5 {[%clk 0:04:35.3]}
8... O-O {[%clk 0:04:35.2]} 9. O-O {[%clk 0:04:32.9]} 9... Nbd7 {[%clk
0:04:25.5]} 10. Qd3 {[%clk 0:04:26.2]} 10... Qc7 {[%clk 0:04:21.2]} 11. Nxf6+
{[%clk 0:04:22.2]} 11... Nxf6 {[%clk 0:04:19.9]} 12. Rfe1 {[%clk 0:04:15]} 12...
b6 {[%clk 0:04:15]} 13. c4 {[%clk 0:04:12.4]} 13... Bb7 {[%clk 0:04:14]} 14.
Rad1 {[%clk 0:04:07.1]} 14... c5 {[%clk 0:03:56.9]} 15. dxc5 {[%clk 0:04:04]}
15... Qxc5 {[%clk 0:03:51.3]} 16. Re5 {[%clk 0:03:55.9]} 16... Qc6 {[%clk
0:03:43.7]} 17. Re3 {[%clk 0:03:41.1]} 17... Ng4 {[%clk 0:03:35]} 18. Re2 {[%clk
0:03:23.6]} 18... Ne5 {[%clk 0:03:24.9]} 19. Qe3 {[%clk 0:03:09.3]} 19... Nxf3+
{[%clk 0:03:19.4]} 20. Qxf3 {[%clk 0:03:04.8]} 20... Qxf3 {[%clk 0:03:17.3]} 21.
gxf3 {[%clk 0:03:00.5]} 21... Bxf3 {[%clk 0:03:16.9]} 22. Rdd2 {[%clk
0:02:56.5]} 22... Bxe2 {[%clk 0:03:15.7]} 23. Rxe2 {[%clk 0:02:55.2]} 23... h6
{[%clk 0:03:08.8]} 24. Be7 {[%clk 0:02:52.8]} 24... Rfe8 {[%clk 0:03:06.9]} 25.
Ba3 {[%clk 0:02:47.4]} 25... Red8 {[%clk 0:03:02.3]} 26. c5 {[%clk 0:02:32.7]}
26... bxc5 {[%clk 0:02:59.4]} 27. Bxc5 {[%clk 0:02:32.6]} 27... Rdc8 {[%clk
0:02:53.5]} 28. Be3 {[%clk 0:02:19.6]} 28... Rc7 {[%clk 0:02:45.4]} 29. Bf4
{[%clk 0:02:15.5]} 29... Rd7 {[%clk 0:02:36.2]} 30. Ba4 {[%clk 0:02:09.7]} 30...
Rd4 {[%clk 0:02:33.8]} 31. Bc6 {[%clk 0:01:53.5]} 31... Rc8 {[%clk 0:02:29.3]}
32. Bb7 {[%clk 0:01:52]} 32... Rd1+ {[%clk 0:02:16.3]} 33. Kg2 {[%clk 0:01:47]}
33... Rc4 {[%clk 0:02:15.5]} 34. Be3 {[%clk 0:01:39.2]} 34... Rg4+ {[%clk
0:02:10.9]} 35. Kf3 {[%clk 0:01:34.9]} 35... h5 {[%clk 0:02:05.8]} 36. Bxa7
{[%clk 0:01:28]} 36... Ra4 {[%clk 0:01:57.7]} 37. Be3 {[%clk 0:01:14.7]} 37...
Rxa2 {[%clk 0:01:56.1]} 38. b4 {[%clk 0:01:09.5]} 38... Rxe2 {[%clk 0:01:53.7]}
39. Kxe2 {[%clk 0:01:08.5]} 39... Rb1 {[%clk 0:01:52.1]} 40. Bc5 {[%clk
0:01:06.4]} 40... Bf8 {[%clk 0:01:50.5]} 41. Bxf8 {[%clk 0:01:03.3]} 41... Kxf8
{[%clk 0:01:48.7]} 42. Be4 {[%clk 0:01:01.3]} 42... Rxb4 {[%clk 0:01:47.6]} 43.
Kd3 {[%clk 0:01:00.9]} 43... f5 {[%clk 0:01:45.9]} 44. Bf3 {[%clk 0:00:59.6]}
44... Kf7 {[%clk 0:01:45.2]} 45. Bc6 {[%clk 0:00:57.9]} 45... Kf6 {[%clk
0:01:42.4]} 46. Ke3 {[%clk 0:00:56.8]} 46... e5 {[%clk 0:01:40]} 47. Kd3 {[%clk
0:00:53.3]} 47... Rb3+ {[%clk 0:01:38.8]} 48. Kc2 {[%clk 0:00:51.7]} 48... Rh3
{[%clk 0:01:36.5]} 49. Kd2 {[%clk 0:00:44.7]} 49... Rxh2 {[%clk 0:01:35.9]} 50.
Ke2 {[%clk 0:00:44]} 50... e4 {[%clk 0:01:33.2]} 51. Ke3 {[%clk 0:00:41.9]}
51... Ke5 {[%clk 0:01:32.1]} 52. Bb5 {[%clk 0:00:39.9]} 52... f4+ {[%clk
0:01:30.7]} 53. Ke2 {[%clk 0:00:38.9]} 53... e3 {[%clk 0:01:28.9]} 54. Kd3
{[%clk 0:00:34.2]} 54... Rxf2 {[%clk 0:01:27.8]} 55. Kc4 {[%clk 0:00:33.1]}
55... Rd2 {[%clk 0:01:26.7]} 56. Bc6 {[%clk 0:00:33]} 56... e2 {[%clk
0:01:24.8]} 57. Be4 {[%clk 0:00:31.8]} 57... Kxe4 {[%clk 0:01:21.3]} 58. Kb5
{[%clk 0:00:31.7]} 58... Rc2 {[%clk 0:01:19.2]} 59. Kb4 {[%clk 0:00:30.5]} 59...
e1=Q+ {[%clk 0:01:17.5]} 60. Kb3 {[%clk 0:00:30.4]} 60... Qb1+ {[%clk
0:01:16.3]} 61. Ka3 {[%clk 0:00:29.1]} 61... Ra2# {[%clk 0:01:15.8]} 0-1